bitfinex-derivatives/quotes_ETHF0:USTF0_20260303
["timestamp","ask_amount","ask_price","bid_price","bid_amount"]
[1772506828232,4.1495657,2016.2,2015.1,0.56833276]
[1772506828438,0.59542496,2016.2,2015.6,0.56833276]
[1772506828940,0.59542496,2016.0,2015.2,0.56833276]
[1772506829235,0.59542496,2015.8,2015.2,0.57351006]
[1772506830234,0.59542496,2015.8,2015.2,0.0051773]
[1772506830631,0.59542496,2015.2,2014.6,0.56833276]
[1772506831030,0.59542496,2015.2,2014.2,0.56833276]
[1772506831339,0.59542496,2015.0,2014.2,0.56833276]
[1772506831540,0.59542496,2015.0,2014.2,0.5731948]
[1772506833938,0.59542496,2015.0,2014.4,0.56833276]
[1772506834337,0.59542496,2015.3,2014.4,0.56833276]
[1772506834937,0.59542496,2015.2,2014.2,0.5731948]
[1772506835138,0.59542496,2015.1,2014.2,0.5731948]
[1772506837436,0.59542496,2015.0,2014.2,0.00486204]
[1772506838041,0.59542496,2015.0,2014.2,0.5731948]
[1772506840935,0.59542496,2015.0,2014.2,0.00486204]
[1772506841445,0.59542496,2015.0,2014.2,0.5731948]
[1772506841742,0.59542496,2014.9,2014.2,0.5731948]
[1772506845536,12.33048121,2015.7,2014.2,0.5731948]
[1772506845537,0.59542496,2015.2,2014.2,0.5731948]
[1772506847146,0.59542496,2015.4,2014.4,0.56833276]
[1772506855849,6.08550708,2015.6,2014.4,0.56833276]
[1772506855850,0.58107633,2015.2,2014.4,0.56833276]
[1772506856151,0.58107633,2015.1,2014.4,0.56833276]
[1772506857551,0.58107633,2014.9,2014.2,0.00486204]
[1772506857750,0.58107633,2014.9,2014.0,0.53977125]
[1772506858154,0.58107633,2014.7,2014.0,0.53977125]
[1772506858358,0.58107633,2014.7,2013.5,0.53977125]
[1772506858359,0.58107633,2014.6,2013.5,0.53977125]
[1772506858866,0.58107633,2014.6,2013.5,0.54429832]
[1772506859566,0.58107633,2014.7,2013.5,0.54429832]
[1772506860168,0.58107633,2014.7,2013.7,0.53977125]
[1772506860368,0.58107633,2014.7,2013.8,0.53977125]
[1772506864767,0.58107633,2014.9,2013.8,0.53977125]
[1772506865764,0.58107633,2015.1,2013.9,0.53977125]
[1772506866574,0.58107633,2015.2,2013.9,0.53977125]
[1772506870469,0.58107633,2015.3,2013.9,0.53977125]
[1772506870674,0.58107633,2015.3,2014.1,0.53977125]
[1772506870871,0.58107633,2015.3,2014.3,0.53977125]
[1772506872770,0.58107633,2015.8,2014.3,0.53977125]
[1772506872975,0.58107633,2015.7,2014.3,0.53977125]
[1772506875776,0.58107633,2015.7,2014.5,0.53977125]
[1772506877176,0.58107633,2015.7,2014.7,0.53977125]
[1772506878172,6.08609667,2015.8,2014.4,0.57250951]
[1772506878173,0.58973276,2015.5,2014.4,0.57250951]
[1772506878373,0.58973276,2015.3,2014.2,7.07550951]
[1772506878578,6.67760249,2015.3,2014.2,7.07550951]
[1772506878775,0.58973276,2015.2,2014.2,0.57250951]
[1772506878971,0.58973276,2015.2,2014.1,0.57250951]
[1772506879578,0.58973276,2015.1,2014.1,0.57250951]
[1772506882079,0.58973276,2014.9,2014.1,0.57250951]
[1772506882280,0.58973276,2014.9,2013.9,0.57250951]
[1772506883778,0.58973276,2014.8,2013.9,0.57250951]
[1772506891278,0.58973276,2014.6,2013.8,0.57250951]
[1772506891478,0.58973276,2014.2,2013.6,0.57250951]
[1772506891685,0.59335814,2014.2,2013.6,0.57250951]
[1772506891883,0.59335814,2014.2,2013.5,0.57703658]
[1772506895177,0.00362538,2014.2,2013.5,0.57703658]
[1772506895384,0.58973276,2014.6,2013.5,0.57703658]
[1772506896487,0.59332808,2014.6,2013.5,0.57703658]
[1772506898389,0.59332808,2014.6,2013.8,0.57250951]
[1772506907697,0.59332808,2014.6,2013.5,0.57894912]
[1772506908196,0.57272786,2014.4,2013.5,0.57894912]
[1772506916603,0.57272786,2014.3,2013.7,0.57442205]
[1772506917005,0.57272786,2014.3,2013.9,0.57442205]
[1772506920200,0.57272786,2014.5,2014.0,1.31515767]
[1772506920404,0.57632318,2014.6,2014.1,0.57442205]
[1772506920602,0.57272786,2014.5,2013.9,0.57442205]
[1772506925803,0.57272786,2014.5,2014.0,1.31515767]
[1772506926109,0.57272786,2014.5,2014.1,0.57442205]
[1772506927010,0.00359532,2014.6,2014.1,0.57442205]
[1772506927211,0.57632318,2014.6,2014.1,0.57442205]
[1772506929804,0.57632318,2014.6,2014.0,1.31515767]
[1772506929805,0.57272786,2014.5,2013.9,0.57442205]
[1772506930011,0.57272786,2014.1,2013.6,0.57442205]
[1772506930413,0.57272786,2014.0,2013.5,0.57894912]
[1772506933214,0.57272786,2014.5,2013.9,0.57442205]
[1772506933517,0.57272786,2014.5,2014.0,0.57442205]
[1772506933920,0.57272786,2014.4,2014.0,0.57442205]
[1772506937823,0.59358661,2014.0,2013.7,0.5653783]
[1772506938022,0.59358661,2014.3,2013.7,0.5653783]
[1772506939526,0.5364341,2014.1,2013.6,0.55798783]
[1772506942728,0.5364341,2014.1,2013.5,0.00452707]
[1772506942928,0.5364341,2014.1,2013.5,0.5625149]
[1772506952133,0.5364341,2014.3,2013.5,0.5625149]
[1772506955036,0.5364341,2014.5,2013.6,0.55798783]
[1772506955236,0.5364341,2014.4,2013.6,0.55798783]
[1772506956838,0.5364341,2014.1,2013.6,0.55798783]
[1772506957241,0.5364341,2014.1,2013.5,0.00452707]
[1772506957242,0.5364341,2014.1,2013.5,0.5625149]
[1772506960642,0.5364341,2014.3,2013.5,0.5625149]
[1772506961442,0.5364341,2014.5,2013.8,0.55798783]
[1772506963644,0.5364341,2014.4,2013.8,0.55798783]
[1772506970749,0.5364341,2014.4,2013.6,0.53652465]
[1772506971246,0.57057747,2014.5,2013.8,0.53652465]
[1772506971447,0.57057747,2014.5,2013.9,0.53652465]
[1772506976952,0.57057747,2014.5,2013.8,6.504]
[1772506976953,0.57057747,2014.5,2013.7,0.53652465]
[1772506977152,0.57057747,2014.5,2013.7,7.04052465]
[1772506977348,0.57057747,2014.5,2013.7,0.53652465]
[1772506977552,0.57057747,2014.4,2013.7,0.53652465]
[1772506978353,0.57057747,2014.3,2013.7,0.53652465]
[1772506987265,0.57057747,2013.9,2013.3,6.504]
[1772506987463,0.57057747,2013.9,2013.4,0.53652465]
[1772506987860,0.57057747,2013.9,2012.8,0.53652465]
[1772506987861,0.57057747,2013.5,2012.8,0.53652465]
[1772506988067,1.31550334,2013.6,2012.8,0.53652465]
[1772506988068,0.57057747,2013.3,2012.8,0.53652465]
[1772506988262,0.57057747,2013.3,2012.8,0.54267202]
[1772506989164,0.57057747,2013.3,2012.8,0.00614737]
[1772506989558,0.57057747,2012.9,2012.5,0.53652465]
[1772506990359,1.88608081,2012.9,2012.0,0.53652465]
[1772506990565,0.57057747,2012.8,2012.0,0.54266529]
[1772506991268,0.00506012,2012.9,2012.2,0.53652465]
[1772506991468,0.57563759,2012.9,2012.3,0.53652465]
[1772506994873,0.57057747,2013.3,2012.4,0.53652465]
[1772506995966,0.57608393,2013.3,2012.4,0.53652465]
[1772506996973,0.57057747,2013.1,2012.4,0.53652465]
[1772507002177,0.54096582,2012.9,2012.4,0.53652465]
[1772507003174,0.54096582,2012.9,2012.2,6.504]
[1772507003376,0.54096582,2012.9,2012.3,0.58855143]
[1772507004579,1.31550334,2013.2,2012.0,0.00614064]
[1772507004580,0.54096582,2012.6,2012.1,0.58855143]
[1772507005073,0.54096582,2012.4,2012.0,0.59469207]
[1772507006276,0.54096582,2012.4,2012.0,0.00614064]
[1772507006682,0.54096582,2012.3,2011.5,0.58855143]
[1772507006878,0.54096582,2012.3,2011.6,0.58855143]
[1772507007771,0.54096582,2012.3,2011.6,0.59495542]
[1772507008078,0.54096582,2012.1,2011.6,0.00640399]
[1772507008480,0.54096582,2011.9,2011.6,0.00640399]
[1772507008680,0.54096582,2011.9,2011.3,0.58855143]
[1772507009681,0.54096582,2011.9,2011.3,0.59297554]
[1772507010378,0.54096582,2011.9,2009.9,0.58855143]
[1772507010379,0.54096582,2011.2,2009.9,0.58855143]
[1772507010579,0.54096582,2011.5,2010.4,0.58855143]
[1772507010783,0.54096582,2011.8,2010.6,0.58855143]
[1772507011082,0.54096582,2011.8,2010.7,0.58855143]
[1772507011481,0.54096582,2011.8,2010.7,0.59274113]
[1772507011482,0.54461986,2011.8,2010.7,0.59274113]
[1772507011683,0.00365404,2011.8,2011.2,0.58855143]
[1772507011884,0.54096582,2011.7,2011.2,0.58855143]
[1772507012579,0.54096582,2011.7,2010.7,0.0041897]
[1772507012580,0.54096582,2011.7,2011.0,0.58855143]
[1772507012777,0.54096582,2011.7,2011.1,0.58855143]
[1772507013182,0.54096582,2011.5,2010.9,0.58855143]
[1772507013378,0.54096582,2011.3,2010.7,1.91109727]
[1772507013583,0.54096582,2010.7,2010.2,0.58855143]
[1772507013783,0.54096582,2010.5,2009.9,0.58855143]
[1772507014683,0.54096582,2010.5,2009.6,1.31835614]
[1772507014684,0.54096582,2010.5,2009.7,0.58855143]
[1772507014884,0.54096582,2010.3,2009.7,0.59319488]
[1772507015084,0.5467671,2010.3,2009.7,0.59319488]
[1772507015487,0.00580128,2010.3,2009.7,0.59319488]
[1772507015894,1.31835614,2010.8,2010.0,0.58855143]
[1772507015895,0.54096582,2010.8,2010.0,0.58855143]
[1772507016395,0.54096582,2010.6,2010.0,0.58855143]
[1772507016795,0.54096582,2010.6,2009.8,0.58855143]
[1772507016993,0.00574583,2010.6,2009.8,0.58855143]
[1772507017399,0.54671165,2010.6,2009.8,0.58855143]
[1772507018999,0.54671165,2010.6,2009.9,0.58855143]
[1772507019000,0.00574583,2010.6,2009.9,0.58855143]
[1772507020397,0.54671165,2010.6,2009.9,0.58855143]
[1772507022299,0.54671165,2010.6,2009.7,0.59319488]
[1772507022300,0.54096582,2010.3,2009.7,0.59319488]
[1772507023206,0.54096582,2010.5,2009.7,0.59319488]
[1772507023807,0.54096582,2010.5,2009.8,0.58855143]
[1772507024904,0.00574583,2010.6,2009.8,2.6677459]
[1772507025108,0.00574583,2010.6,2009.9,0.58855143]
[1772507025909,0.00574583,2010.6,2010.0,0.58855143]
[1772507026205,0.54671165,2010.6,2010.0,0.58855143]
[1772507028900,0.00574583,2010.6,2010.0,0.58855143]
[1772507029100,0.57074098,2011.1,2010.0,0.58855143]
[1772507030009,0.57536685,2011.1,2010.0,0.58855143]
[1772507031207,0.57536685,2011.1,2010.2,0.54271149]
[1772507035812,0.57536685,2011.1,2009.7,0.00464345]
[1772507035813,0.57074098,2010.6,2009.7,0.00464345]
[1772507036106,0.57074098,2010.6,2009.7,0.54735494]
[1772507037810,0.57074098,2010.4,2009.7,0.00464345]
[1772507039408,0.57074098,2010.4,2009.5,0.54271149]
[1772507039409,0.57074098,2010.4,2009.2,0.79171505]
[1772507039614,0.57074098,2009.8,2009.2,0.79171505]
[1772507040415,0.57074098,2010.3,2009.4,0.54271149]
[1772507042812,0.57074098,2010.3,2009.2,1.34002744]
[1772507043018,0.57074098,2010.2,2009.3,0.54271149]
[1772507043217,0.57074098,2010.1,2009.3,0.54271149]
[1772507057029,0.57074098,2010.1,2008.7,10.143]
[1772507057030,2.07919447,2009.5,2008.9,0.54271149]
[1772507057231,2.64993545,2009.5,2008.9,0.54271149]
[1772507057431,0.57074098,2009.4,2008.9,0.54271149]
[1772507058029,0.57545687,2009.4,2008.9,0.54645299]
[1772507060137,0.00471589,2009.4,2008.9,0.54645299]
[1772507060536,0.54582431,2009.7,2008.9,0.54645299]
[1772507061431,0.54961318,2009.7,2008.9,0.54645299]
[1772507067235,0.54582431,2010.2,2009.1,0.54551996]
[1772507068342,0.55125319,2010.2,2009.1,0.54551996]
[1772507071342,0.54582431,2010.0,2009.1,0.54551996]
[1772507073149,0.00542888,2010.2,2009.1,0.54551996]
[1772507073342,0.55125319,2010.2,2009.1,0.54551996]
[1772507073743,0.55125319,2010.2,2009.3,0.54551996]
[1772507074654,0.00542888,2010.2,2009.3,0.54551996]
[1772507076052,0.55125319,2010.2,2009.3,0.54551996]
[1772507076756,0.55125319,2010.2,2009.5,0.54551996]
[1772507077150,0.55125319,2010.2,2009.3,0.54551996]
[1772507077355,0.54582431,2010.0,2009.1,0.54551996]
[1772507078355,8.83703043,2010.1,2008.9,0.0037415]
[1772507078356,0.54582431,2009.8,2008.9,0.54926146]
[1772507078653,0.54582431,2009.7,2008.9,0.54926146]
[1772507078856,0.54582431,2009.5,2008.9,0.0037415]
[1772507079450,0.54582431,2009.5,2008.3,6.508]
[1772507079451,0.54582431,2009.3,2008.3,0.54551996]
[1772507079857,0.54582431,2009.2,2008.3,0.54551996]
[1772507080455,0.54582431,2009.2,2008.3,0.54981356]
[1772507082955,0.54582431,2009.4,2008.3,0.54981356]
[1772507083254,0.54582431,2009.4,2008.5,0.54551996]
[1772507088760,0.54804991,2009.2,2008.3,0.56595499]
[1772507098266,0.54804991,2009.6,2008.5,0.56166139]
[1772507098567,0.54804991,2009.7,2008.7,0.56166139]
[1772507104177,8.20074043,2010.0,2008.7,0.56166139]
[1772507104178,0.54804991,2009.5,2008.7,0.56166139]
[1772507104980,0.54804991,2009.5,2008.4,0.56166139]
[1772507107378,0.54804991,2009.4,2008.4,0.56166139]
[1772507119176,0.54804991,2009.4,2008.4,7.07166139]
[1772507119377,0.54804991,2009.4,2008.5,0.5787067]
[1772507122987,6.7298548,2009.4,2008.5,0.5787067]
[1772507123188,0.56290821,2009.3,2008.5,0.5787067]
[1772507124083,0.56290821,2009.4,2008.5,0.5787067]
[1772507125692,6.17700244,2009.9,2008.5,0.5787067]
[1772507125693,7.79887779,2010.9,2009.4,6.12205]
[1772507125887,10.62942374,2011.1,2010.0,0.49669293]
[1772507126092,10.62942374,2011.1,2010.2,0.49669293]
[1772507126093,11.19233195,2011.1,2010.2,0.49669293]
[1772507126287,0.56290821,2011.0,2010.2,0.49669293]
[1772507126487,6.73991065,2010.9,2010.6,4.1294438]
[1772507126692,10.92186829,2010.9,2010.6,4.13315045]
[1772507126904,17.37319881,2010.9,2010.6,4.13315045]
[1772507127091,17.37319881,2010.9,2010.6,0.00370665]
[1772507127990,17.37319881,2010.9,2010.2,14.70674544]
[1772507127991,0.56290821,2010.8,2010.2,14.70674544]
[1772507128587,0.56290821,2010.8,2010.3,0.45403831]
[1772507128992,6.17700244,2010.6,2010.3,0.46024348]
[1772507129194,6.17700244,2010.6,2010.3,0.10314412]
[1772507129696,6.73991065,2010.6,2010.3,0.00620517]
[1772507129889,0.56290821,2010.6,2010.3,0.00620517]
[1772507130095,11.19233195,2010.6,2010.3,0.00620517]
[1772507132695,10.62942374,2010.6,2010.3,0.09085311]
[1772507133196,11.19233195,2010.6,2010.3,0.09085311]
[1772507133395,10.62942374,2010.6,2010.3,0.09085311]
[1772507133594,6.17700244,2010.6,2010.3,0.09085311]
[1772507133795,6.73991065,2010.6,2010.3,0.00620517]
[1772507134401,0.56290821,2010.5,2010.3,0.00620517]
[1772507134701,6.17700244,2010.6,2010.3,0.08133018]
[1772507136796,6.73991065,2010.6,2010.3,0.08133018]
[1772507136997,6.17700244,2010.6,2010.3,6.59133018]
[1772507138199,6.73991065,2010.6,2010.3,6.59133018]
[1772507138503,0.56290821,2010.5,2010.3,6.51620517]
[1772507139499,13.19124117,2010.6,2010.3,6.51620517]
[1772507139697,17.36933439,2010.6,2010.3,6.51620517]
[1772507139897,21.54217132,2010.6,2010.3,6.51620517]
[1772507140104,17.36933439,2010.6,2010.3,6.51620517]
[1772507140294,0.56290821,2010.5,2010.3,6.51620517]
[1772507140499,0.56290821,2010.5,2010.3,5.71441879]
[1772507140700,11.19233195,2010.6,2010.3,5.71441879]
[1772507141196,4.73574514,2010.5,2010.3,5.71441879]
[1772507141503,0.00386442,2010.9,2010.3,6.29791097]
[1772507141504,4.60029562,2010.4,2010.3,6.29791097]
[1772507141702,0.56290821,2010.7,2010.3,6.29791097]
[1772507141902,10.62942374,2010.6,2010.3,6.29791097]
[1772507142097,15.39887661,2010.6,2010.3,5.71920427]
[1772507142293,15.39887661,2010.6,2010.2,7.74270713]
[1772507142294,0.59661594,2010.5,2010.2,7.74270713]
[1772507142502,0.59661594,2010.5,2010.2,6.33510841]
[1772507142801,4.17283693,2010.3,2010.2,6.33510841]
[1772507142997,0.59661594,2010.4,2010.2,2.50310515]
[1772507143197,15.39887661,2010.3,2010.2,2.50310515]
[1772507143405,0.56290821,2010.4,2010.2,2.50719804]
[1772507143604,11.19233195,2010.7,2010.2,3.08590474]
[1772507143804,0.56290821,2010.7,2010.2,3.08590474]
[1772507144299,0.56290821,2011.5,2010.4,6.17242062]
[1772507144500,0.59615751,2011.2,2010.5,10.60381325]
[1772507144705,0.59615751,2011.1,2010.2,7.17971799]
[1772507144908,0.59615751,2011.0,2010.3,6.51]
[1772507145298,0.60092642,2011.0,2010.4,6.51]
[1772507145498,9.17970199,2010.9,2010.4,6.51]
[1772507145896,9.17970199,2010.9,2010.5,0.0100037]
[1772507146101,9.77085765,2010.9,2010.5,0.0100037]
[1772507149601,0.59463806,2010.8,2010.4,10.61417382]
[1772507150909,0.59463806,2010.8,2010.5,0.01063987]
[1772507152005,0.59463806,2010.8,2010.4,10.60381325]
[1772507152205,9.77434005,2010.7,2010.5,4.09381325]
[1772507152510,0.59463806,2010.9,2010.5,4.09381325]
[1772507152710,0.59463806,2010.8,2010.5,4.09381325]
[1772507153005,0.59463806,2010.9,2010.5,4.20800603]
[1772507153308,0.59463806,2010.9,2010.4,6.51]
[1772507153309,9.17970199,2010.8,2010.6,4.20800603]
[1772507153903,9.17970199,2010.8,2010.6,4.09381325]
[1772507154101,9.17970199,2010.8,2010.6,10.60481325]
[1772507154307,9.17970199,2010.8,2010.7,4.09381325]
[1772507155205,9.77434005,2010.8,2010.7,6.13672007]
[1772507155810,9.77434005,2010.8,2010.7,3.98049632]
[1772507156020,9.77434005,2010.8,2010.7,3.38700691]
[1772507159104,9.77434005,2010.8,2010.2,3.05828343]
[1772507159105,0.59463806,2010.7,2010.2,3.05828343]
[1772507160011,0.59463806,2010.5,2010.2,3.05828343]
[1772507160211,0.59463806,2010.5,2010.3,6.511]
[1772507160610,6.511,2010.9,2010.3,6.511]
[1772507160611,9.77434005,2010.4,2010.3,6.511]
[1772507160807,0.59463806,2010.4,2010.3,5.84250988]
[1772507161012,0.59463806,2010.4,2010.2,2.50719804]
[1772507161214,8.33275785,2010.4,2010.3,0.73767166]
[1772507161408,7.71580182,2010.4,2010.3,0.73767166]
[1772507161608,6.8147882,2010.8,2010.3,0.73767166]
[1772507161813,6.75182,2010.7,2010.3,0.73767166]
[1772507162014,0.59463806,2010.6,2010.3,7.24867166]
[1772507162915,6.75182,2010.7,2010.4,0.55108539]
[1772507165012,6.15718194,2010.7,2010.4,0.55108539]
[1772507165212,6.75182,2010.7,2010.4,0.55108539]
[1772507165407,0.59463806,2010.6,2010.3,6.511]
[1772507165612,0.59463806,2010.6,2010.3,7.06208539]
[1772507166116,6.75182,2010.7,2010.3,7.06208539]
[1772507166415,6.75182,2010.7,2010.4,0.55108539]
[1772507166915,0.59463806,2010.6,2010.3,7.06208539]
[1772507167615,6.15718194,2010.5,2010.3,7.06208539]
[1772507168713,0.78617817,2010.9,2010.4,0.55108539]
[1772507168913,1.09648465,2010.7,2010.5,6.511]
[1772507169214,2.10069186,2010.8,2010.5,6.511]
[1772507169412,0.59463806,2010.7,2010.5,6.511]
[1772507169717,2.69532992,2010.8,2010.5,7.06208539]
[1772507172222,0.55444912,2010.8,2010.6,0.55108539]
[1772507172617,1.14908718,2010.8,2010.5,7.06208539]
[1772507173221,0.59463806,2010.7,2010.5,6.511]
[1772507173626,1.14908718,2010.8,2010.5,7.06208539]
[1772507176928,0.55444912,2010.8,2010.6,0.55108539]
[1772507177328,1.14908718,2010.8,2010.6,0.55108539]
[1772507177624,1.14908718,2010.8,2010.5,6.511]
[1772507177834,1.4028607,2010.7,2010.5,5.815]
[1772507178125,1.4028607,2010.7,2010.3,1.35655885]
[1772507178331,0.55444912,2010.6,2010.4,7.86755885]
[1772507178826,0.55444912,2010.6,2010.5,6.511]
[1772507179429,0.55444912,2010.6,2010.4,1.35655885]
[1772507179430,1.90850485,2010.6,2010.4,6.511]
[1772507180025,0.55444912,2010.6,2010.4,7.94794133]
[1772507180628,1.90850485,2010.6,2010.4,6.511]
[1772507182330,1.35405573,2010.6,2010.4,6.511]
[1772507185528,1.35405573,2010.4,2010.2,10.26472361]
[1772507185724,1.35405573,2010.4,2010.1,14.38066168]
[1772507185931,0.55444912,2010.3,2010.1,7.94794133]
[1772507186131,0.55444912,2010.3,2010.1,1.43694133]
[1772507186428,0.55444912,2010.3,2010.1,7.94794133]
[1772507186830,0.55444912,2010.3,2010.1,7.95396843]
[1772507188435,0.55444912,2010.3,2010.2,1.43694133]
[1772507188639,0.55444912,2010.3,2010.1,6.5170271]
[1772507188640,1.90850485,2010.3,2010.1,0.0060271]
[1772507189734,1.90850485,2010.3,2010.1,1.44296843]
[1772507190130,1.90850485,2010.3,2010.1,0.0060271]
[1772507191537,1.90850485,2010.3,2010.1,1.44296843]
[1772507191735,0.55444912,2010.3,2010.1,1.44296843]
[1772507191936,1.90850485,2010.3,2010.1,1.44296843]
[1772507193543,0.55444912,2010.3,2010.1,1.44296843]
[1772507193844,1.90850485,2010.3,2010.1,0.0060271]
[1772507194043,1.35405573,2010.2,2010.1,0.0060271]
[1772507194440,1.90850485,2010.3,2010.1,0.0060271]
[1772507194736,0.55444912,2010.3,2010.1,1.44296843]
[1772507195649,1.90850485,2010.3,2010.1,0.0060271]
[1772507197341,1.90850485,2010.3,2009.5,11.54809506]
[1772507197342,1.35405573,2010.1,2009.5,1.43694133]
[1772507197547,1.35405573,2009.9,2009.6,1.43694133]
[1772507197940,1.90850485,2010.0,2009.6,1.43694133]
[1772507198440,1.90850485,2010.0,2009.7,1.43694133]
[1772507198943,1.35405573,2009.9,2009.6,6.51556163]
[1772507199143,1.35405573,2009.9,2009.6,7.95250296]
[1772507200247,1.90850485,2010.0,2009.7,1.43694133]
[1772507201043,1.35405573,2009.9,2009.6,6.51556163]
[1772507201443,1.35405573,2009.9,2009.6,7.95250296]
[1772507201948,1.90850485,2009.8,2009.6,6.51556163]
[1772507202144,1.35405573,2010.0,2009.6,1.43694133]
[1772507203052,1.35405573,2010.0,2009.6,1.44229754]
[1772507204646,0.55444912,2009.9,2009.6,1.44229754]
[1772507204851,1.35405573,2010.3,2009.8,1.43694133]
[1772507205749,1.35405573,2010.5,2010.0,1.43694133]
[1772507206055,1.35405573,2010.9,2010.1,1.43694133]
[1772507206246,1.35405573,2010.9,2010.3,1.43694133]
[1772507206646,1.35405573,2010.9,2010.5,1.43694133]
[1772507209550,1.35405573,2010.9,2010.4,8.26378953]
[1772507209953,1.35405573,2010.9,2010.5,1.75178953]
[1772507214456,0.00476891,2011.0,2010.5,1.75178953]
[1772507214858,1.71920711,2011.3,2010.6,1.75178953]
[1772507215055,1.71920711,2011.4,2010.8,1.75178953]
[1772507215963,1.72438626,2011.4,2010.8,1.75178953]
[1772507216166,0.00517915,2011.4,2010.8,1.75178953]
[1772507217865,1.72438626,2011.4,2010.8,1.75178953]
[1772507218062,1.71920711,2011.6,2010.8,1.75178953]
[1772507219160,1.72531237,2011.6,2010.8,1.75178953]
[1772507221563,1.71920711,2011.4,2010.8,1.75178953]
[1772507224569,1.71920711,2011.5,2010.9,1.75178953]
[1772507229166,0.00610526,2011.6,2010.9,1.75178953]
[1772507229371,1.72531237,2011.6,2010.9,1.75178953]
[1772507230370,0.00610526,2011.6,2010.9,1.75178953]
[1772507231269,0.00610526,2011.6,2011.1,1.75178953]
[1772507231474,1.71920711,2011.9,2011.2,1.75178953]
[1772507232273,1.71920711,2012.2,2011.5,1.75178953]
[1772507232474,1.72380474,2012.2,2011.6,1.75178953]
[1772507232776,1.71920711,2012.6,2011.9,1.75178953]
[1772507232975,1.71920711,2012.6,2012.0,1.75178953]
[1772507233271,1.71920711,2012.3,2011.7,1.75178953]
[1772507233470,1.71920711,2012.3,2011.6,6.512]
[1772507233471,1.71920711,2012.3,2011.6,1.75178953]
[1772507233774,1.72359386,2012.3,2011.6,1.75178953]
[1772507235674,1.32022827,2012.2,2011.6,1.75178953]
[1772507235875,1.71920711,2011.9,2011.4,1.75178953]
[1772507238278,1.71920711,2011.9,2011.3,8.32180161]
[1772507238475,1.71920711,2011.9,2011.4,1.80980161]
[1772507238872,1.71920711,2011.9,2011.3,6.512]
[1772507239180,1.71920711,2011.9,2011.3,8.32180161]
[1772507239381,1.88422483,2011.8,2011.4,1.80980161]
[1772507240378,1.88422483,2011.8,2011.3,8.32180161]
[1772507241579,1.88422483,2011.8,2011.3,1.80980161]
[1772507245476,1.88422483,2011.8,2011.1,6.51737348]
[1772507245673,6.76056,2012.0,2011.1,6.51737348]
[1772507245674,1.88422483,2011.6,2011.1,1.81517509]
[1772507245877,1.88422483,2011.9,2011.1,1.81517509]
[1772507246276,1.88422483,2012.2,2011.3,1.80980161]
[1772507247883,1.88422483,2012.1,2011.3,1.80980161]
[1772507249578,1.88422483,2012.2,2011.3,1.80980161]
[1772507250387,1.88422483,2012.2,2011.4,1.32022827]
[1772507250686,1.88422483,2012.2,2011.6,1.80980161]
[1772507251079,3.20207152,2012.2,2011.6,1.80980161]
[1772507251278,1.88422483,2012.1,2011.6,1.80980161]
[1772507253388,3.20207152,2012.2,2011.6,1.80980161]
[1772507255184,1.88861158,2012.3,2011.6,1.80980161]
[1772507255389,1.88861158,2012.3,2011.7,1.80980161]
[1772507256383,5.49131387,2012.8,2012.1,1.80980161]
[1772507256384,1.88422483,2012.7,2012.1,1.80980161]
[1772507256580,1.88422483,2012.7,2011.7,6.512]
[1772507256778,1.88422483,2012.1,2011.8,1.80980161]
[1772507257386,1.88867777,2012.1,2011.8,1.80980161]
[1772507259290,1.88867777,2012.1,2011.7,1.80980161]
[1772507263894,0.00445294,2012.1,2011.7,1.80980161]
[1772507264794,1.88867777,2012.1,2011.7,1.80980161]
[1772507267397,0.00445294,2012.1,2011.7,1.80980161]
[1772507267596,1.88422483,2012.3,2011.7,1.80980161]
[1772507268699,1.8895706,2012.3,2011.7,1.80980161]
[1772507276601,0.00534577,2012.3,2011.7,1.80980161]
[1772507276809,0.00534577,2012.3,2011.9,1.77584582]
[1772507277108,1.74535611,2012.3,2011.9,1.77584582]
[1772507282006,1.74535611,2012.3,2011.7,7.73099053]
[1772507282309,1.74001034,2012.2,2011.8,1.77584582]
[1772507282508,1.74001034,2012.2,2011.7,1.77584582]
[1772507282807,1.31784669,2011.9,2011.5,1.77584582]
[1772507283006,1.74001034,2011.6,2011.2,8.28784582]
[1772507283311,1.74001034,2011.6,2011.1,1.7812193]
[1772507292618,1.74001034,2011.9,2011.3,1.31784669]
[1772507292808,1.74001034,2011.8,2011.4,1.77584582]
[1772507293816,1.74001034,2011.7,2011.2,1.77584582]
[1772507294014,1.31784669,2011.6,2011.1,1.7812193]
[1772507294213,1.74001034,2011.5,2011.1,1.7812193]
[1772507294413,1.74001034,2011.5,2011.1,0.00537348]
[1772507294614,1.74001034,2011.5,2011.1,1.7812193]
[1772507296719,1.74001034,2011.5,2011.1,0.00537348]
[1772507296918,1.74001034,2011.3,2011.1,0.00537348]
[1772507297115,1.74001034,2011.3,2011.0,1.77584582]
[1772507297319,1.74001034,2011.2,2010.8,1.77584582]
[1772507298116,1.74001034,2011.2,2010.8,1.78087211]
[1772507299020,1.31784669,2011.0,2010.6,1.70103788]
[1772507299215,1.78116119,2010.9,2010.6,1.70103788]
[1772507299415,1.78116119,2010.9,2010.5,1.70103788]
[1772507299615,1.78116119,2010.9,2010.5,0.34625052]
[1772507300023,1.78116119,2010.9,2010.5,0.35105321]
[1772507302519,1.78116119,2010.9,2010.5,0.00480269]
[1772507302822,1.78116119,2010.9,2010.5,1.70584057]
[1772507303524,1.78116119,2010.9,2010.5,0.00480269]
[1772507303820,1.78116119,2010.6,2010.0,1.70103788]
[1772507304018,1.78116119,2010.5,2010.0,1.70103788]
[1772507304723,1.78616612,2010.5,2010.0,1.70743797]
[1772507305821,8.29916612,2010.5,2010.0,0.00640009]
[1772507306021,1.78116119,2010.4,2010.0,0.00640009]
[1772507306324,1.78116119,2010.4,2010.0,1.70743797]
[1772507306525,3.09900788,2010.4,2010.0,0.00640009]
[1772507306826,1.78116119,2010.1,2009.7,8.21403788]
[1772507307029,1.78116119,2009.9,2009.5,1.70103788]
[1772507307925,1.78116119,2009.7,2009.5,0.00474559]
[1772507308518,1.78116119,2009.7,2009.2,1.70103788]
[1772507309521,2.02994119,2010.2,2009.7,1.70103788]
[1772507309827,1.78116119,2010.1,2009.5,1.70103788]
[1772507311221,1.78116119,2010.1,2009.3,1.70103788]
[1772507312225,1.32066402,2010.0,2009.2,1.70494107]
[1772507312421,1.78116119,2009.8,2009.2,0.00390319]
[1772507312722,1.78116119,2009.7,2009.2,0.00390319]
[1772507314224,1.78116119,2009.7,2008.9,1.70103788]
[1772507315120,1.78116119,2009.7,2008.9,1.70749091]
[1772507315324,1.78116119,2009.7,2008.9,0.00645303]
[1772507316820,1.78116119,2009.5,2008.9,0.00645303]
[1772507317030,1.78116119,2009.3,2008.6,1.70103788]
[1772507317224,1.78116119,2009.2,2008.6,1.70103788]
[1772507317625,1.78116119,2009.2,2008.3,1.70103788]
[1772507318125,1.78116119,2009.2,2008.3,1.70588104]
[1772507318333,1.78116119,2009.2,2008.3,0.00484316]
[1772507318528,6.513,2009.3,2008.3,0.00484316]
[1772507318529,1.78116119,2009.0,2008.3,0.00484316]
[1772507318729,1.78116119,2008.8,2007.4,1.70103788]
[1772507319523,6.12798126,2009.0,2007.4,1.70103788]